bitfinex/quotes_ETHUSD_20251008
["timestamp","ask_amount","ask_price","bid_price","bid_amount"]
[1759942620397,0.68884411,4493.8,4493.7,7.21563297]
[1759942620702,0.68884411,4493.8,4493.7,6.91383768]
[1759942620883,0.68884411,4493.8,4493.7,7.35819767]
[1759942621083,0.01,4495.9,4494.8,3.85839308]
[1759942621281,0.01,4495.9,4495.5,2.22444666]
[1759942621591,0.01,4495.9,4495.5,5.74944665]
[1759942621820,0.01,4495.9,4495.5,6.79674665]
[1759942622108,0.01,4495.9,4495.8,3.85789822]
[1759942622295,1.92,4497.7,4495.9,0.6336]
[1759942622495,2.22355635,4497.3,4497.2,0.99999999]
[1759942622806,2.22355635,4497.3,4497.2,3.52599999]
[1759942623306,2.68385635,4497.3,4497.2,2.526]
[1759942623472,4.60385635,4497.3,4497.2,2.526]
[1759942624470,1.92,4497.2,4495.3,0.1854]
[1759942624676,2.22417472,4496.1,4495.4,0.163]
[1759942625005,2.22370469,4497.0,4495.4,0.163]
[1759942625207,2.22438656,4495.7,4495.4,0.163]
[1759942625688,0.4603,4496.6,4495.4,0.163]
[1759942625889,2.22415127,4496.1,4495.5,0.4107]
[1759942626094,2.2242196,4496.0,4495.6,0.02224397]
[1759942626403,2.22426526,4495.9,4495.6,0.02224397]
[1759942626780,2.22430822,4495.8,4495.5,0.4107]
[1759942627381,2.22434691,4495.8,4495.5,0.4107]
[1759942627594,1.92,4497.1,4495.4,0.163]
[1759942627777,2.22444319,4495.6,4495.4,0.163]
[1759942627979,2.22414981,4496.1,4495.4,0.163]
[1759942628303,2.22436119,4495.7,4495.4,0.163]
[1759942628515,0.4603,4497.1,4495.5,0.4107]
[1759942628684,2.22415791,4496.1,4495.6,0.02224397]
[1759942628885,2.22375414,4496.9,4495.7,0.4107]
[1759942629096,2.22407031,4496.3,4495.8,0.02224298]
[1759942629300,1.92,4497.0,4495.9,2.9377]
[1759942629500,2.22375414,4496.9,4496.0,2.527]
[1759942629698,2.22399213,4496.5,4496.1,2.527]
[1759942629904,0.4603,4497.4,4496.1,2.527]
[1759942630099,0.2304,4497.8,4496.1,2.527]
[1759942630100,2.22377746,4496.9,4496.2,0.022241]
[1759942630420,2.22345747,4497.5,4496.2,0.022241]
[1759942630822,2.2239066,4496.6,4496.1,2.9377]
[1759942630985,2.2239066,4496.6,4496.1,2.527]
[1759942631319,0.1104,4497.3,4496.5,0.1104]
[1759942631524,2.2239025,4496.6,4496.5,0.1104]
[1759942631728,2.6842025,4496.6,4496.5,2.6374]
[1759942631893,2.6842025,4496.6,4496.5,2.527]
[1759942632397,2.2239025,4496.6,4496.5,2.527]
[1759942632716,2.2238309,4496.8,4496.5,2.527]
[1759942632717,1.92,4497.5,4496.5,2.527]
[1759942633042,2.22383291,4496.8,4496.5,2.527]
[1759942633717,2.22383291,4496.8,4496.5,2.9377]
[1759942633917,1.92,4497.5,4496.5,2.9377]
[1759942633918,2.22339318,4497.7,4496.6,0.43293902]
[1759942634134,2.22351439,4497.4,4496.6,0.43293902]
[1759942634309,0.66745946,4498.0,4496.6,0.4107]
[1759942634491,2.89070494,4498.0,4496.6,0.4107]
[1759942634692,2.22340036,4497.7,4496.8,2.22376575]
[1759942634911,2.89070494,4498.0,4496.7,0.02223853]
[1759942634912,1.92,4497.9,4496.9,2.65668957]
[1759942635093,2.2234102,4497.6,4496.9,0.4107]
[1759942635290,0.66737185,4498.5,4497.0,0.02223704]
[1759942635495,2.2229727,4498.5,4497.1,2.526]
[1759942635725,0.4603,4499.1,4497.2,0.4107]
[1759942635992,0.4603,4498.6,4497.2,0.4107]
[1759942636208,0.33852701,4499.3,4497.2,0.4107]
[1759942636411,2.22324226,4498.0,4497.2,0.4107]
[1759942636609,2.68301963,4499.0,4497.3,2.22353442]
[1759942636811,2.22321821,4498.0,4497.4,0.4107]
[1759942637028,2.22281837,4498.8,4497.4,0.4107]
[1759942637204,2.22281837,4498.8,4492.4,1.11458051]
[1759942637205,2.2229632,4498.5,4496.8,0.4107]
[1759942637412,4.14291379,4498.6,4496.9,0.39]
[1759942637413,0.4603,4498.4,4496.9,0.39]
[1759942637636,4.14310018,4498.3,4496.9,0.39]
[1759942637824,2.22370469,4497.0,4496.9,0.39]
[1759942638819,2.22370469,4497.0,4496.9,0.8007]
[1759942639022,2.22370469,4497.0,4496.9,0.39]
[1759942639609,2.66600469,4497.0,4496.9,0.39]
[1759942639838,2.22370469,4497.0,4496.9,0.39]
[1759942640339,2.66600469,4497.0,4496.9,0.39]
[1759942641050,2.22370469,4497.0,4496.9,0.39]
[1759942641922,2.22364135,4497.2,4496.9,0.8007]
[1759942642121,2.22325974,4497.9,4496.9,0.39]
[1759942642432,4.14340803,4497.6,4496.9,2.525]
[1759942642631,2.22370469,4497.0,4496.9,2.6354]
[1759942643341,2.22370469,4497.0,4496.9,2.525]
[1759942643544,2.22315211,4498.2,4496.9,2.9357]
[1759942643738,0.59400518,4498.8,4496.9,2.9357]
[1759942643739,0.4629,4498.7,4496.9,2.525]
[1759942643912,2.22311992,4498.2,4497.3,2.22354984]
[1759942644105,2.22306329,4498.3,4497.4,2.22350621]
[1759942644305,2.22306329,4498.3,4497.1,2.22364069]
[1759942644306,2.22311275,4498.2,4497.0,0.4107]
[1759942644510,0.4629,4498.6,4497.1,2.524]
[1759942644929,2.22277994,4498.9,4497.8,2.22330644]
[1759942645142,2.2228705,4498.7,4497.9,2.54623259]
[1759942645519,2.22296562,4498.5,4497.9,2.95693259]
[1759942645827,2.22296562,4498.5,4497.9,2.9347]
[1759942646912,0.2338,4499.7,4497.9,2.95693259]
[1759942647144,2.22295428,4498.6,4497.9,2.9347]
[1759942647856,1.92,4499.1,4497.9,2.9347]
[1759942648156,2.22279967,4498.9,4497.9,2.9347]
[1759942648336,2.22295825,4498.6,4497.9,2.9347]
[1759942648650,2.3829,4499.2,4497.9,2.524]
[1759942648866,2.22306648,4498.3,4497.9,2.524]
[1759942649212,2.2227185,4499.0,4497.9,2.9347]
[1759942649435,2.2229529,4498.6,4497.9,2.524]
[1759942649638,2.22305817,4498.4,4497.9,2.524]
[1759942649825,2.22521031,4498.0,4497.9,2.524]
[1759942650317,0.002,4498.0,4497.9,2.524]
[1759942650509,0.002,4498.0,4497.9,2.9347]
[1759942652013,0.002,4498.0,4497.9,2.524]
[1759942653039,0.002,4498.0,4497.9,2.9347]
[1759942653345,0.002,4498.0,4497.9,3.0451]
[1759942653735,0.002,4498.0,4497.9,5.15795974]
[1759942656321,0.002,4498.0,4497.9,5.79155974]
[1759942659355,0.002,4498.0,4497.9,5.15795974]
[1759942659529,0.002,4498.0,4497.9,0.4107]
[1759942659855,0.002,4498.0,4497.9,5.15595974]
[1759942660026,0.002,4498.0,4497.9,5.78955974]
[1759942661923,0.002,4498.0,4497.9,3.26755974]
[1759942662258,0.002,4498.0,4497.9,5.78955974]
[1759942663727,2.17467432,4499.1,4498.4,2.22299923]
[1759942663932,2.17467432,4499.1,4499.0,0.1127]
[1759942664231,2.17467432,4499.1,4499.0,3.1548]
[1759942664426,2.17467432,4499.1,4499.0,2.6314]
[1759942664637,2.17467432,4499.1,4499.0,0.1104]
[1759942664864,2.17467432,4499.1,4499.0,2.6314]
[1759942665228,2.64417432,4499.1,4499.0,0.1104]
[1759942665462,2.22318838,4498.1,4497.5,0.5234]
[1759942665665,0.4695,4498.6,4497.5,0.1127]
[1759942665829,2.22325247,4498.0,4497.6,2.521]
[1759942666024,2.22261735,4499.2,4497.5,0.1127]
[1759942666025,2.22326164,4497.9,4497.5,0.1127]
[1759942666326,2.22326164,4497.9,4497.8,0.1104]
[1759942666327,2.22325974,4497.9,4497.8,0.1104]
[1759942666655,2.22325974,4497.9,4496.5,0.4107]
[1759942666656,2.22362042,4497.2,4496.5,0.4107]
[1759942666870,2.22362042,4497.2,4496.6,0.492]
[1759942667043,2.2235561,4497.4,4497.1,0.1104]
[1759942667347,2.0304,4498.3,4497.2,2.522]
[1759942667348,2.22355635,4497.3,4497.2,2.522]
[1759942667870,2.22355635,4497.3,4497.2,2.6324]
[1759942670160,16.06860339,4498.9,4497.2,2.6324]
[1759942670161,1.92,4498.8,4497.2,2.6324]
[1759942670343,2.22300879,4498.5,4497.2,3.0431]
[1759942670538,2.22330917,4497.8,4497.7,0.1104]
[1759942670742,2.22330917,4497.8,4497.7,2.6324]
[1759942671173,2.22330917,4497.8,4497.7,0.1104]
[1759942671374,2.69283404,4497.8,4496.4,0.1127]
[1759942671670,2.223728,4497.0,4496.5,0.493]
[1759942671841,2.223728,4497.0,4496.6,0.4107]
[1759942672045,2.22377328,4496.9,4496.5,0.493]
[1759942672569,2.22377328,4496.9,4496.8,0.1104]
[1759942673477,0.2194,4498.1,4496.8,2.6334]
[1759942673478,0.5674,4497.8,4496.8,2.6334]
[1759942673774,2.22375414,4496.9,4496.8,2.6334]
[1759942674842,2.22375414,4496.9,4496.8,0.1104]
[1759942675046,2.22375414,4496.9,4496.8,0.7014]
[1759942675248,2.22375414,4496.9,4496.8,0.1104]
[1759942675587,2.68075414,4496.9,4496.8,2.3524]
[1759942675989,2.68075414,4496.9,4496.8,2.242]
[1759942676146,2.68075414,4496.9,4496.3,0.1112]
[1759942676147,2.22400142,4496.4,4496.3,0.1112]
[1759942676478,2.22400142,4496.4,4496.3,2.523]
[1759942676645,2.68100142,4496.4,4496.3,2.523]
[1759942676846,4.60100142,4496.4,4496.3,2.523]
[1759942678646,4.14400142,4496.4,4496.3,2.524]
[1759942678991,2.22393731,4496.6,4496.3,2.6352]
[1759942679156,0.1104,4497.1,4496.3,2.6352]
[1759942679351,2.22387685,4496.7,4496.4,0.02224001]
[1759942679553,0.457,4497.4,4496.6,0.1104]
[1759942679753,2.22385304,4496.7,4496.6,0.1104]
[1759942679986,2.68085304,4496.7,4496.6,0.1104]
[1759942680283,2.68085304,4496.7,4496.6,2.6344]
[1759942680979,2.22385304,4496.7,4496.6,2.6344]
[1759942681575,2.68085304,4496.7,4496.6,2.6344]
[1759942681997,2.68085304,4496.7,4496.6,2.524]
[1759942682389,2.22400142,4496.4,4496.3,0.001]
[1759942682776,2.68100142,4496.4,4496.3,0.001]
[1759942682975,2.22400142,4496.4,4496.3,0.001]
[1759942683505,2.22400142,4496.4,4496.3,0.801]
[1759942683684,2.68100142,4496.4,4496.3,0.801]
[1759942683881,4.60100142,4496.4,4496.3,0.801]
[1759942686580,4.60100142,4496.4,4496.3,0.001]
[1759942688210,2.22429823,4495.8,4495.3,0.001]
[1759942688702,0.686,4495.7,4495.3,0.001]
[1759942689001,2.22444666,4495.5,4495.3,0.001]
[1759942689369,2.68149615,4495.4,4495.3,0.001]
[1759942690703,4.60149615,4495.4,4495.3,0.001]
[1759942693128,2.22449615,4495.4,4495.3,0.001]
[1759942693310,2.68149615,4495.4,4495.3,0.001]
[1759942697612,2.22449615,4495.4,4495.3,0.001]
[1759942698195,2.22449615,4495.4,4495.3,0.1122]
[1759942698731,0.67842306,4496.0,4495.3,0.1122]
[1759942698936,2.22449615,4495.4,4495.3,0.1122]
[1759942699224,2.68149615,4495.4,4495.3,0.1122]
[1759942699394,2.68149615,4495.4,4495.3,0.001]
[1759942700938,2.22449615,4495.4,4495.3,0.001]
[1759942701596,2.22449615,4495.4,4495.3,0.1122]
[1759942705538,2.67349615,4495.4,4495.3,0.1122]
[1759942705925,2.22449615,4495.4,4495.3,0.1122]
[1759942707028,2.67349615,4495.4,4495.3,0.1122]
[1759942709415,2.67349615,4495.4,4495.3,0.001]
[1759942709615,2.22449615,4495.4,4495.3,0.001]
[1759942714956,2.67349615,4495.4,4495.3,0.001]
[1759942715537,4.59349615,4495.4,4495.3,0.001]
[1759942719255,4.14449615,4495.4,4495.3,0.001]
[1759942719772,4.59349615,4495.4,4495.3,0.001]
[1759942721857,4.59349615,4495.4,4495.3,0.801]
[1759942722767,4.14449615,4495.4,4495.3,0.801]
[1759942724448,2.22449615,4495.4,4495.3,0.801]
[1759942725541,2.66409615,4495.4,4495.3,0.801]
[1759942725741,2.22449615,4495.4,4495.3,0.801]
[1759942726998,2.22447373,4495.5,4495.3,1.3229]
[1759942727302,0.002,4496.3,4495.4,2.65743987]
[1759942727592,0.002,4496.3,4496.2,0.1127]
[1759942727794,0.002,4496.3,4496.2,4.96900035]
[1759942727983,0.002,4496.3,4496.2,5.37970035]
[1759942729480,0.002,4496.3,4496.2,3.1556]
[1759942730076,0.002,4496.3,4496.2,0.2239]
[1759942730269,0.002,4496.3,4496.2,2.6322]
[1759942731589,0.002,4496.3,4496.2,3.0429]
[1759942731765,0.002,4496.3,4496.2,3.065141]
[1759942731961,0.002,4496.3,4496.2,5.28924135]
[1759942732168,0.002,4496.3,4496.2,5.26700035]
[1759942732980,0.002,4496.3,4496.2,2.74600035]
[1759942733175,0.002,4496.3,4496.2,5.26600035]
[1759942734191,0.002,4496.3,4496.2,3.0419]
[1759942734398,0.002,4496.3,4496.2,5.26600035]
[1759942737499,0.002,4496.3,4496.2,0.1112]
[1759942737663,0.002,4496.3,4496.2,1.9362]
[1759942739479,0.002,4496.3,4496.2,1.958441]
[1759942739680,0.002,4496.3,4496.2,1.9362]
[1759942740088,0.002,4496.3,4496.2,2.369141]
[1759942740290,0.002,4496.3,4496.2,2.3469]
[1759942740475,0.002,4496.3,4496.2,4.57100035]
[1759942752785,0.002,4496.3,4496.2,0.1112]
[1759942752987,0.002,4496.3,4496.2,2.6312]
[1759942753186,0.002,4496.3,4496.2,5.26600035]
[1759942763116,0.002,4496.3,4496.2,5.26500035]
[1759942765540,0.002,4496.3,4496.2,2.74600035]
[1759942765738,0.002,4496.3,4496.2,5.26500035]
[1759942771148,0.002,4496.3,4496.2,2.6302]
[1759942771321,0.002,4496.3,4496.2,5.26500035]
[1759942772558,0.002,4496.3,4496.2,2.74600035]
[1759942772854,0.002,4496.3,4496.2,5.26500035]
[1759942773228,0.002,4496.3,4496.2,2.6302]
[1759942773430,0.002,4496.3,4496.2,3.0409]
[1759942773828,0.002,4496.3,4496.2,2.6302]
[1759942774030,0.002,4496.3,4496.2,3.0409]
[1759942774759,0.002,4496.3,4496.2,5.26500035]
[1759942775557,0.002,4496.3,4496.2,3.0409]
[1759942776442,0.002,4496.3,4496.2,5.26500035]
[1759942777055,0.002,4496.3,4496.2,3.0409]
[1759942778856,0.002,4496.3,4496.2,5.26500035]
[1759942779057,0.002,4496.3,4496.2,3.0409]
[1759942783679,0.002,4496.3,4496.2,3.8409]
[1759942784240,0.002,4496.3,4496.2,6.06500035]
[1759942784744,0.002,4496.3,4496.2,3.8409]
[1759942785064,0.002,4496.3,4496.2,3.0409]
[1759942787271,0.002,4496.3,4496.2,5.92084135]
[1759942787470,0.002,4496.3,4496.2,5.89860035]
[1759942787772,0.00041496,4496.3,4496.2,5.89860035]
[1759942788747,0.00041496,4496.3,4496.2,6.16372898]
[1759942788954,0.00041496,4496.3,4496.2,5.89860035]
[1759942791572,0.002,4496.8,4496.4,0.6336]
[1759942791757,0.002,4496.8,4496.5,2.519]
[1759942792083,0.002,4496.8,4496.7,2.33425304]
[1759942792449,0.002,4496.8,4496.7,0.1104]
[1759942792649,0.002,4496.8,4496.7,2.6294]
[1759942793272,0.002,4496.8,4496.7,3.0401]
[1759942793869,0.002,4496.8,4496.7,0.5211]
[1759942794050,0.002,4496.8,4496.7,3.0401]
[1759942795368,0.002,4496.8,4496.7,2.6294]
[1759942796281,0.002,4496.8,4496.7,0.1104]
[1759942796487,0.002,4496.8,4496.7,2.6294]
[1759942797586,2.22580359,4496.8,4496.7,2.6294]
[1759942799394,2.68600359,4496.8,4496.7,2.6294]
[1759942800195,6.72593478,4496.8,4496.7,0.1104]
[1759942800396,2.22400142,4496.4,4496.3,14.99958504]
[1759942800687,4.96233119,4496.8,4496.3,14.99958504]
[1759942800688,0.002,4496.8,4496.3,17.51858504]
[1759942800858,4.50013119,4497.0,4496.3,17.51858504]
[1759942801059,0.4602,4497.0,4496.7,0.1104]
[1759942801369,4.50013119,4497.6,4496.3,17.51858504]
[1759942801370,2.22276556,4498.9,4496.8,5.23283451]
[1759942801691,2.2233586,4497.7,4497.6,0.1104]
[1759942801898,6.72348979,4497.7,4497.6,2.519]
[1759942802995,6.72348979,4497.7,4496.8,0.1104]
[1759942802996,2.22375414,4496.9,4496.8,0.1104]
[1759942803192,2.22375414,4496.9,4496.8,2.6294]
[1759942804695,2.22375414,4496.9,4496.8,2.519]
[1759942807392,0.1104,4497.3,4496.8,2.519]
[1759942807581,2.22360579,4497.2,4496.8,2.519]
[1759942807895,2.22360579,4497.2,4496.9,0.02223754]
[1759942808094,2.22360579,4497.2,4497.1,0.1104]
[1759942808297,2.22360579,4497.2,4497.1,2.6294]
[1759942808998,0.002,4497.7,4497.1,2.6294]
[1759942809203,2.22360579,4497.2,4497.1,2.6294]
[1759942809499,2.22536495,4497.7,4497.1,2.9868]
[1759942809704,2.22536495,4497.7,4497.6,0.1104]
[1759942809871,2.22536495,4497.7,4497.6,2.6294]
[1759942810369,0.002,4497.7,4497.6,2.6294]
[1759942810801,2.2253586,4497.7,4497.6,2.6294]
[1759942810969,0.002,4497.7,4497.6,2.6294]
[1759942811409,0.002,4497.7,4497.6,3.0972]
[1759942811729,0.002,4497.7,4497.6,5.34284211]
[1759942811882,0.002,4498.2,4497.9,2.22323579]
[1759942812071,0.002,4498.2,4498.1,2.85676089]
[1759942812273,0.002,4498.2,4498.1,0.1104]
[1759942812473,0.002,4498.2,4498.1,2.9868]
[1759942813191,0.002,4498.2,4498.1,2.519]
[1759942814110,2.22511946,4498.2,4498.1,2.519]
[1759942815805,6.72525065,4498.2,4498.1,2.519]
[1759942817721,2.22354907,4497.4,4496.7,0.4678]
[1759942818019,4.50013119,4497.8,4496.8,2.518]
[1759942818207,2.22375414,4496.9,4496.8,2.518]
[1759942818410,4.50013119,4497.2,4496.8,2.518]
[1759942818602,2.22373588,4497.0,4496.8,2.518]
[1759942818998,4.50013119,4497.5,4496.8,2.518]
[1759942819217,2.2236665,4497.1,4496.8,2.518]
[1759942819526,2.22366219,4497.1,4496.8,2.518]
[1759942819826,0.002,4498.6,4496.9,0.49003754]
[1759942820190,2.22320289,4498.1,4496.9,0.49003754]
[1759942820391,2.22320289,4498.1,4497.0,2.22370469]
[1759942820621,2.22320289,4498.1,4497.1,0.4678]
[1759942820843,2.22320289,4498.1,4497.2,0.02223605]
[1759942821035,2.2232144,4498.0,4497.3,2.9858]
[1759942821199,4.50213119,4498.6,4497.3,2.518]
[1759942821200,4.50013119,4498.1,4497.3,2.518]
[1759942821535,2.22324995,4498.0,4497.4,0.02223506]
[1759942821893,2.22326173,4497.9,4497.4,0.02223506]
[1759942822289,0.002,4498.2,4497.4,0.4678]
[1759942822496,4.50013119,4498.1,4497.8,0.1104]
[1759942822820,8.86839093,4497.9,4497.8,2.518]
[1759942823022,8.86839093,4497.9,4496.8,0.001]
[1759942823023,2.2233586,4497.7,4496.8,0.001]
[1759942823192,6.72388533,4496.9,4496.8,0.001]
[1759942825605,2.22375414,4496.9,4496.8,0.001]
[1759942825931,0.1104,4497.4,4496.8,0.001]
[1759942826225,2.22375414,4496.9,4496.8,0.001]
[1759942826826,0.1104,4497.4,4496.8,0.001]
[1759942827428,2.22362283,4497.2,4497.1,0.1104]
[1759942827627,2.22350691,4497.4,4497.1,0.1104]
[1759942827826,2.22355635,4497.3,4497.2,2.518]
[1759942828232,1.92,4498.0,4497.2,2.518]
[1759942828532,0.002,4498.2,4497.4,0.1104]
[1759942828533,2.22344949,4497.6,4497.4,0.1104]
[1759942828921,2.22345747,4497.5,4497.4,0.1104]
[1759942829628,2.69355747,4497.5,4497.4,0.1104]
[1759942829812,2.22375414,4496.9,4496.8,0.001]
[1759942830132,2.22375414,4496.9,4496.8,2.6294]
[1759942830512,7.19398533,4496.9,4496.8,2.6294]
[1759942831103,7.19398533,4496.9,4496.8,2.519]
[1759942831804,2.69385414,4496.9,4496.8,2.519]
[1759942832146,2.69385414,4496.9,4496.8,0.001]
[1759942832346,2.69385414,4496.9,4496.8,2.519]
[1759942833656,2.69385414,4496.9,4496.8,0.001]
[1759942833837,5.28155871,4496.9,4496.8,0.001]
[1759942834930,2.69385414,4496.9,4496.8,0.001]
[1759942835133,2.22375414,4496.9,4496.8,0.001]
[1759942835553,2.69385414,4496.9,4496.8,0.001]
[1759942836747,0.4701,4497.4,4496.8,0.001]
[1759942836954,2.22375414,4496.9,4496.8,0.001]
[1759942837449,0.4701,4497.4,4496.8,0.001]
[1759942837647,2.22375414,4496.9,4496.8,0.001]
[1759942838041,0.4701,4497.4,4496.8,0.001]
[1759942838955,2.22355635,4497.3,4496.8,0.001]
[1759942839156,2.22374312,4497.0,4496.8,0.001]
[1759942840053,0.4701,4497.4,4496.8,0.001]
[1759942840427,2.22355635,4497.3,4496.8,0.001]
[1759942840964,0.002,4498.6,4496.8,0.001]
[1759942841123,0.4748,4498.2,4496.9,0.4722]
[1759942841319,2.22345299,4497.6,4496.9,0.4722]
[1759942841549,2.22345299,4497.6,4496.9,2.69594367]
[1759942841752,2.22331567,4497.8,4497.0,0.02223704]
[1759942841959,2.22326034,4497.9,4497.0,0.49443704]
[1759942842120,0.002,4498.0,4497.2,2.22359035]
[1759942842316,0.002,4498.0,4497.3,2.54023556]
[1759942842852,0.002,4498.0,4497.4,0.45753506]
[1759942843155,0.002,4498.0,4497.8,2.22327182]
[1759942843372,0.002,4498.0,4497.9,2.54023259]
[1759942843656,0.002,4498.0,4497.9,5.19879233]
[1759942843820,0.002,4498.0,4497.9,5.17655974]
[1759942845053,0.002,4498.0,4497.9,2.9533]
[1759942845224,0.002,4498.0,4497.9,2.97553259]
[1759942845425,0.002,4498.0,4497.9,2.9533]
[1759942845821,0.002,4498.0,4497.9,5.19879233]
[1759942846021,0.002,4498.0,4497.9,5.17655974]
[1759942846419,0.002,4498.0,4497.9,2.9533]
[1759942846626,0.002,4498.0,4497.9,2.518]
[1759942846827,0.002,4498.0,4497.9,2.6284]
[1759942847258,0.002,4498.0,4497.9,3.0637]
[1759942848058,0.002,4498.0,4497.9,5.28695974]
[1759942849161,0.002,4498.0,4497.9,2.6284]
[1759942849162,2.22521031,4498.0,4497.9,2.6284]
[1759942849368,0.002,4498.0,4497.9,2.6284]
[1759942849861,0.002,4498.0,4497.9,3.0637]
[1759942850059,0.002,4498.0,4497.9,5.28695974]
[1759942851128,0.002,4498.0,4497.9,2.6284]
[1759942851533,0.002,4498.0,4497.9,3.0637]
[1759942851933,0.002,4498.0,4497.9,5.28695974]
[1759942852432,0.002,4498.0,4497.9,3.0637]
[1759942853257,0.002,4498.0,4497.9,2.6284]
[1759942854563,2.68721031,4498.0,4497.9,0.1104]
[1759942854762,0.464,4498.0,4497.9,2.518]
[1759942854986,2.68721031,4498.0,4497.9,2.518]
[1759942859677,2.22350691,4497.4,4497.3,0.1104]
[1759942859847,2.22350691,4497.4,4497.3,2.518]
[1759942860052,2.68300691,4497.4,4497.3,2.518]
[1759942860234,0.1104,4497.7,4497.3,2.518]
[1759942860438,0.002,4498.0,4497.6,0.001]
[1759942860645,0.002,4498.0,4497.8,0.1104]
[1759942860850,0.002,4498.0,4497.9,2.98713259]
[1759942861067,0.002,4498.0,4497.9,5.21039233]
[1759942861254,0.002,4498.0,4497.9,5.29855974]
[1759942862369,0.002,4498.0,4497.9,5.93215974]
[1759942862666,0.002,4498.0,4497.9,7.85215974]
[1759942863246,1e-08,4498.2,4498.1,2.85676089]
[1759942863589,1e-08,4498.2,4498.1,7.08876089]
[1759942863881,0.01,4499.9,4499.6,2.22237252]
[1759942864055,0.01,4499.9,4499.7,2.517]
[1759942864241,0.01,4499.9,4499.8,0.1104]
[1759942864443,0.01,4499.9,4499.8,0.5795232]
[1759942864877,0.01,4499.9,4499.8,2.80184419]
[1759942865451,0.01,4499.9,4499.8,3.0743]
[1759942865644,0.01,4499.9,4499.8,5.29662099]
[1759942866061,0.01,4499.9,4499.8,5.18622099]
[1759942866262,0.01,4499.9,4499.8,5.29662099]
[1759942867677,0.01,4499.9,4499.8,2.77962099]
[1759942867864,0.01,4499.9,4499.8,5.29662099]
[1759942868074,0.01,4499.9,4499.8,3.0743]
[1759942868285,0.01,4499.9,4499.8,5.29662099]
[1759942868575,0.01,4499.9,4499.8,3.0743]
[1759942868749,0.01,4499.9,4499.8,5.29662099]
[1759942869179,0.01,4499.9,4499.8,3.0743]
[1759942869400,0.01,4499.9,4499.8,5.29662099]
[1759942869549,0.01,4499.9,4499.8,3.0743]
[1759942869748,0.01,4499.9,4499.8,5.29662099]
[1759942870477,0.01,4499.9,4499.8,2.77962099]
[1759942870780,0.01,4499.9,4499.8,5.29662099]
[1759942870971,0.01,4499.9,4499.8,3.0743]
[1759942871481,0.01,4499.9,4499.8,2.6274]
[1759942871786,2.2322716,4499.9,4499.8,2.6264]
[1759942872084,0.01,4499.9,4499.8,2.6264]
[1759942872674,0.01,4499.9,4499.8,3.0733]
[1759942873404,0.01,4499.9,4499.8,2.6264]
[1759942873405,2.2322716,4499.9,4499.8,2.6264]
[1759942874079,0.01,4499.9,4499.8,2.6264]
[1759942876262,2.2322716,4499.9,4499.8,2.6264]
[1759942877199,0.01,4499.9,4499.2,0.02222617]
[1759942877395,0.01,4499.9,4499.8,0.1104]
[1759942877700,2.23228266,4499.9,4499.8,2.6264]
[1759942877901,2.91938266,4499.9,4499.8,0.1104]
[1759942878196,2.22265372,4499.2,4498.3,2.22305743]
[1759942878498,2.22269192,4499.1,4498.4,2.9629]
[1759942878798,2.68251735,4499.2,4499.1,0.1104]
[1759942879004,0.4599,4499.2,4497.2,0.001]
[1759942879305,2.22291379,4498.6,4498.5,0.1104]
[1759942879468,2.68281379,4498.6,4498.5,1.7]
[1759942880088,2.22311146,4498.2,4498.1,0.001]
[1759942880604,2.68301146,4498.2,4498.1,0.001]
[1759942880805,15.8881796,4498.8,4498.1,0.001]
[1759942880806,1.03806006,4500.0,4498.1,2.517]
[1759942881004,16.38198888,4500.3,4498.1,2.517]
[1759942881005,2.22232099,4499.8,4498.1,2.517]
[1759942881302,0.4719,4499.9,4498.2,0.46913111]
[1759942881488,0.4719,4499.9,4498.2,2.69223855]
[1759942881489,0.012,4499.9,4498.2,2.69223855]
[1759942881802,0.012,4499.9,4498.4,0.6336]
[1759942882102,0.012,4499.9,4499.2,2.2225741]
[1759942882300,0.012,4499.9,4499.3,2.516]
[1759942882475,2.22232099,4499.8,4499.4,2.516]
[1759942882662,0.012,4499.9,4499.5,2.516]
[1759942882862,2.22233611,4499.8,4499.5,2.516]
[1759942883113,0.012,4499.9,4499.5,2.516]
[1759942883281,2.23428433,4499.9,4499.5,2.516]
[1759942883598,2.22241977,4499.6,4499.5,2.516]
[1759942884103,0.4458,4499.6,4498.1,0.001]
[1759942884277,2.22279584,4498.9,4498.2,0.003]
[1759942884466,2.22291014,4498.7,4498.2,0.003]
[1759942884794,0.4458,4499.6,4498.2,0.003]
[1759942884795,0.4458,4499.3,4498.2,0.003]
[1759942885002,2.22288094,4498.7,4498.2,0.003]
[1759942885297,0.4458,4499.3,4498.2,0.003]
[1759942885599,0.4458,4499.3,4498.3,0.4339]
[1759942885804,2.22276197,4499.0,4498.3,0.4339]
[1759942886094,2.22266948,4499.1,4498.2,0.003]
[1759942886294,2.22287231,4498.7,4498.2,0.003]
[1759942886597,2.22276556,4498.9,4498.2,0.003]
[1759942886893,0.4458,4499.3,4498.3,0.4339]
[1759942887098,2.22283834,4498.8,4498.2,0.003]
[1759942887495,2.22257264,4499.3,4498.5,2.22295526]
[1759942887704,2.22262303,4499.2,4498.6,0.4339]
[1759942887878,0.01,4500.9,4498.7,3.2903514]
[1759942888078,0.01,4500.9,4499.8,2.22232099]
[1759942888440,0.01,4500.9,4499.8,4.73832099]
[1759942888566,0.01,4500.9,4499.8,5.17222099]
[1759942889070,0.01,4500.9,4499.8,5.80582099]
[1759942889277,0.01,4500.9,4499.8,6.24966748]
[1759942890402,0.01,4500.9,4499.8,5.17222099]